Workbook

Sheet Forklaring
A2: Forklaring til regnearkoppsettet.
A4: Fra og med budsjettet for 2005 ble budsjettoppsettet endret noe, dette pga:
A6: * Det tidligere oppsettet ble ved noen enkelt ganger feiltolket i budsjettbehandlingen.
A7: * Vi får nå oppsettet likt for resultatsiden, driften og investeringene.
A8: * Det blir lettere å avstemme Unique Økoplan (budsjettsystem i økonomisystemet vårt).
A9: * I forbindelse med selvkostberegningene innenfor vann- og avløpssektoren
A10: må vi vise kostnadene på en noe annen måte enn tidligere.
A11: * Vi skiller videre mellom varige rammeendringer (dette er varige driftstiltak
A12: som varer over mange år eller er "uendelig") og tidsbegrensede rammeendringer
A13: (som er kortvarige tiltak, dvs. tiltak som gjelder for ett eller noen få år).
A14: * Eksempelet er et hypotetisk eksempel - dog hentet fra foreslått økonomiplan.
A16: I vedlagt eksempel vil vi vise hvordan tabellene "leses".
F19: Det enkelte tiltak
B20: Nettorammen er hentet | F20: legges inn kun for
B21: fra 2007. Videre er denne ført | F21: det året tiltaket skal
B22: videre for hele perioden. | F22: gjelde. For nevnte konkrete
F23: tiltak gjelder kun i 2011.
F24: men ikke i 2008 - 2010.
A27: Eksempel hentet fra Sent.adm. | H27: Budsjett og økonomiplan
C29: Vedtatte | D29: Justert | F29: Økonomiplan
C30: endringer | D30: budsjett | E30: Budsjett
A31: Drift - endringer | B31: Ansvar | C31: 2007 | D31: 2004 | E31: 2008 | F31: 2009 | G31: 2010 | H31: 2011
A32: Nettobudsjett | C32: 35621 | E32: 38422 | F32: 38422 | G32: 38422 | H32: 38422
A33: Fratrekk engangsforhold | C33: -1737 | E33: -2145 | F33: -2145 | G33: -2145 | H33: -2145
A35: Varige rammeendringer:
A36: Næringsutvikler | B36: 1110 | C36: 400 | E36: 250 | F36: 250 | G36: 250 | H36: 250
A37: Tilskudd Julebyen | B37: 1076 | C37: 120 | E37: 30 | F37: 30 | G37: 30 | H37: 30
A38: Sum varige rammeendringer | C38: 2393
A40: Tidsbegrensede rammeendringer
A41: Stortingsvalt | B41: 1031 | F41: 500
A42: Kommunevalg | B42: 1031 | H42: 800
A48: Samlet ramme avd. | C48: 38422 | E48: 39247 | F48: 39337 | G48: 38487 | H48: 39287
C52: Rammen til avdelingen | G52: Nevnte tiltak viser hva
C53: summeres nedover | G53: som ble lagt inn i bud. 2007
C54: for det enkelte år. | G54: og eventuelle endringer i
C55: Utgangspunktet er | G55: kommende år. For tilskuddet
C56: nettorammen fra 2007. | G56: til Julebyen betyr dette at
G57: at det ble avsatt 120.000 kr
G58: i 2007 og at denne økes med
G59: 30.000 kr i 2008 - dvs. et
G60: total tilskudd på 150.000 kr.

Sheet Ark1
A1: Egersund kommune

Sheet Resultat
B1: Bud 2013 - øk.pl. 2013 - 2016
B2: Inntekter, finansposter og resultat | I2: Budsjett og økonomiplan - rådmannens forslag
E4: Justert | G4: Økonomiplan
D5: Regnskap | E5: budsjett | F5: Budsjett
B6: Drift - endringer | C6: Ansvar | D6: 2011 | E6: 2012 | F6: 2013 | G6: 2014 | H6: 2015 | I6: 2016
B7: Frie inntekter
B8: Skatteinngang | C8: 8000 | D8: -317388 | E8: -337600 | F8: -359750 | G8: =+F8 -> -359750 | H8: =+G8 -> -359750 | I8: =+H8 -> -359750
B9: Rammetilskudd | C9: 8040 | D9: -267109 | E9: -287900 | F9: =-317500+1900 -> -315600 | G9: -315000 | H9: -313150 | I9: -313150
B10: Skjønnsmidler fra fylkesmannen | C10: 8040 | D10: -2629 | F10: -1900 | G10: -2000 | H10: -2000 | I10: -2000
B11: Ressurskrevende tjenester HO | C11: 8040 | D11: -23976 | E11: -21657 | F11: -22200 | G11: =-22200+950+335 -> -20915 | H11: =+G11+2465 -> -18450 | I11: =+H11 -> -18450
B12: Rente-tilskudd omsorg | C12: 8043 | D12: -3970 | E12: -3850 | F12: -3750 | G12: -3700 | H12: -3600 | I12: -3500
B13: Vertskommunetilskudd | C13: 8045 | D13: -55373 | E13: -55500 | F13: -54760 | G13: -53300 | H13: -52300 | I13: -51300
B14: Statstilskudd flyktninger | C14: 8050 | D14: -14506 | E14: -14530 | F14: -12000 | G14: -12000 | H14: -12000 | I14: -12000
B15: Eiendomsskatt | C15: 8010 | D15: -16150 | E15: -23600 | F15: -25550 | G15: -25550 | H15: -25550 | I15: -25550
B16: Eiendomsskatt vindmøller (næring) | C16: 8010 | F16: -500 | G16: -2140 | H16: -11940 | I16: -11940
B17: Eiendomsskatt (økt boligbygging) | C17: 8010 | F17: -450 | G17: -700 | H17: -950 | I17: -950
B18: Økt eiendomsskatt - andre boliger | C18: 8010 | F18: -12000 | G18: -12000 | H18: -12000 | I18: -12000
B19: Momskompensasjon - drift | C19: 8041 | D19: =(16981-70)*-1 -> -16911 | E19: -16280 | F19: -16339 | G19: -16377 | H19: -16403 | I19: -16403
B20: Investerings tilskudd GR97 | C20: 8042 | D20: -628 | E20: -600 | F20: -500 | G20: -450 | H20: -400 | I20: -350
B21: Refusjon rentefrie skolelån | C21: 8044 | D21: -1988 | E21: -1800 | F21: -1750 | G21: -1700 | H21: -1650 | I21: -1650
B22: Kalk. rent./avd. | C22: 8099 | D22: -16255 | E22: -16650 | F22: -18900 | G22: -20000 | H22: -21000 | I22: -21700
B23: Sum frie disponible inntekter | D23: =SUM(D8:D22) -> -736883 | E23: -779967 | F23: -845949 | G23: -845582 | H23: -851143 | I23: -850693
B25: Finansposter
B26: Renteutgifter på lån | C26: 9000 | D26: =57+17269+4566 -> 21892 | E26: 24640 | F26: =22100+1500 -> 23600 | G26: =23120+2000 -> 25120 | H26: =24320+2500 -> 26820 | I26: =23995+3000 -> 26995
B27: Avdrag på lån | C27: 9010 | D27: 25014 | E27: 28000 | F27: 29350 | G27: 31350 | H27: 32550 | I27: 33450
B28: Dekn. finanskostn. nye maskiner | C28: 9011 | D28: -515 | F28: - | G28: 0
B29: Amortiseringstilskudd 1 og 2 | C29: 9005 | D29: -1120 | E29: -1220 | F29: -1220 | G29: -1220 | H29: -1220 | I29: -1220
B30: Netto renteutg på forvaltningslån | C30: 9020 | D30: 399 | E30: 500 | F30: 500 | G30: 500 | H30: 500 | I30: 500
B31: Renter av innskudd fond | C31: 9000 | D31: -435 | E31: -350 | F31: -200 | G31: -200 | H31: -200 | I31: -200
B32: Andre statlige tilskudd/utbytte | C32: 9000 | D32: -21 | E32: -20 | F32: -20 | G32: -20 | H32: -20 | I32: -20
B33: Renter ved for sen betaling | C33: 9000 | D33: -36 | E33: -50 | F33: -50 | G33: -50 | H33: -50 | I33: -50
B34: Renteinntekter av bankinnskudd | C34: 9000 | D34: -3822 | E34: -3750 | F34: -3000 | G34: -2900 | H34: -2800 | I34: -2800
B35: Konsesjonskraft | C35: 9008 | D35: -726 | E35: -1150 | F35: -650 | G35: -650 | H35: -650 | I35: -650
B36: Utbytte Dalane Energi | C36: 9009 | D36: -3081 | E36: -5580 | F36: -6000 | G36: -6500 | H36: -6500 | I36: -6500
B37: Utbytte Lyse Energi AS | C37: 9009 | D37: -10033 | E37: -10300 | F37: -10300 | G37: -10500 | H37: -10500 | I37: -10500
B38: Rente Lyse Energi AS | C38: 9000 | D38: -3980 | E38: -3950 | F38: -3250 | G38: -3300 | H38: -3500 | I38: -3350
B39: Finansbelastning VA-prosjekt | C39: 9000
B40: Finansbelastning prosjekt | C40: 9080 | D40: =(-3055-1137) -> -4192 | E40: -1000 | F40: -1500 | G40: -800 | H40: -1100 | I40: -1100
B41: Netto finansposter | D41: =SUM(D26:D40) -> 19344 | E41: 25770 | F41: 27260 | G41: 30830 | H41: 33330 | I41: 34555
B43: Avsetninger
B44: Bundne avsetninger | C44: 9000 | D44: 416 | E44: 350 | F44: 200 | G44: 200 | H44: 200 | I44: 200
B45: Avsetning Vertskommunetilskudd til EK | C45: 9040 | F45: 7000 | G45: 6000 | H45: 6000 | I45: 6000
B46: Frie avsetninger til Driftsfond | C46: 9040 | D46: =618+20 -> 638 | E46: 123 | F46: 450 | H46: 500
B47: Bruk av Driftsfond | C47: 9040 | G47: -850
B48: Bruk av Barnehagefondet | C48: 9040 | F48: -1000 | G48: -1000
B49: Bruk av frie fond | C49: 9040 | D49: -2850 | E49: -3270 | H49: 0 | I49: 0
B50: Netto avsetninger | D50: =SUM(D44:D49) -> -1796 | E50: -2797 | F50: 6650 | G50: 4350 | H50: 6700 | I50: 6200
B52: Momskompensasjon - investering | C52: 8041 | D52: =(-6224-70) -> -6294 | E52: -7900 | F52: -4000 | G52: -2500 | H52: -2400 | I52: -350
B53: Overføringer investeringsbudsjett | C53: 9080 | D53: =1400+6243 -> 7643 | E53: 6400 | F53: 4000 | G53: 2500 | H53: 2400 | I53: 350
B55: Til fordeling drift
B56: Sentraladministrasjonen | D56: 47757 | E56: 45121 | F56: =+D_Sentr_!D59 -> 48518 | G56: =+D_Sentr_!E59 -> 47858 | H56: =+D_Sentr_!F59 -> 48058 | I56: =+D_Sentr_!G59 -> 47358
B57: Fellesfunksjoner - Kap 7 | D57: -1955 | E57: =+'D_Kap 7'!C59 -> -2697 | F57: =+'D_Kap 7'!D59 -> 34152 | G57: =+'D_Kap 7'!E59 -> 34652 | H57: =+'D_Kap 7'!F59 -> 35152 | I57: =+'D_Kap 7'!G59 -> 35152
B58: Kirken | D58: 6683 | E58: 6608 | F58: =+D_Kirken!D59 -> 5983 | G58: =+D_Kirken!E59 -> 5758 | H58: =+D_Kirken!F59 -> 5758 | I58: =+D_Kirken!G59 -> 5758
B59: Levekårsavdelingen - Skole/BH | D59: 293091 | E59: =+D_Skole!C59 -> 310720 | F59: =+D_Skole!D59 -> 315693 | G59: =+D_Skole!E59 -> 314458 | H59: =+D_Skole!F59 -> 314258 | I59: =+D_Skole!G59 -> 314258
B60: Levekårsavdelingen - HO | D60: 296480 | E60: =+D_H_O!C59 -> 318134 | F60: =+D_H_O!D59 -> 327830 | G60: =+D_H_O!E59 -> 327745 | H60: =+D_H_O!F59 -> 326740 | I60: =+D_H_O!G59 -> 325735
B61: Levekårsavdelingen - Kultur | D61: 11303 | E61: =+D_Kultur!C59 -> 12197 | F61: =+D_Kultur!D59 -> 11364 | G61: =+D_Kultur!E59 -> 11274 | H61: =+D_Kultur!F59 -> 11174 | I61: =+D_Kultur!G59 -> 11274
B62: VAR-sektoren - selvfinansierende
B63: Miljøavdelingen | D63: 64627 | E63: =+D_Miljø!C59 -> 68411 | F63: =+D_Miljø!D59 -> 68459 | G63: =+D_Miljø!E59 -> 68632 | H63: =+D_Miljø!F59 -> 68803 | I63: =+D_Miljø!G59 -> 69838
B64: Sum fordelt til drift | D64: =SUM(D56:D63) -> 717986 | E64: 758494 | F64: 811999 | G64: 810377 | H64: 809943 | I64: 809373
B66: Resultat (avsetn. fond) | D66: =+D23+D41+D50+D64+D53+D52 -> 0 | E66: 0 | F66: -40 | G66: -25 | H66: -1170 | I66: -565
B68: Samlet resultat 2013 - 2016 | C68: =+F66+G66+H66+I66 -> -1800

Sheet D_Sentr_
A2: Sentraladministrasjonen | G2: Budsjett og økonomiplan
C4: Vedtatte | E4: Økonomiplan
C5: endringer | D5: Budsjett
A6: Drift - endringer | B6: Ansvar | C6: 2012 | D6: 2013 | E6: 2014 | F6: 2015 | G6: 2016
A7: Nettobudsjett | C7: 47322 | D7: =+C59 -> 47871 | E7: =+D7 -> 47871 | F7: =+E7 -> 47871 | G7: =+F7 -> 47871
A8: Fratrekk engangsforhold 2012 | C8: -1270 | D8: =-C53 -> -1213 | E8: =-C53 -> -1213 | F8: =-C53 -> -1213 | G8: =-C53 -> -1213
A10: Varige rammeendringer:
A11: Lønnsøkninger | B11: Diverse | C11: 939 | D11: 446 | E11: 446 | F11: 446 | G11: 446
A12: Kontrollutvalget | B12: 1041 | C12: 300 | D12: 100 | E12: 100
A13: Norsk Pasientskadeordning | B13: 1090 | C13: 350
A14: Tilskudd iPark Dalane | B14: 1091 | C14: -150 | D14: -150 | E14: -150 | F14: -150 | G14: -150
A15: Beredskapsarbeide - diverse utg | B15: 1133 | C15: 100
A16: Tilskudd til Vinerlandbruksskolen | B16: 1440 | D16: -44 | E16: -44 | F16: -44 | G16: -44
A17: Tilskudd til Dalanerådet/Næringssjefen | B17: 1082 | C17: -150 | D17: -715 | E17: -715 | F17: -715 | G17: -715
A18: Korr i tilskudd lagt inn av KS | B18: 1079 | C18: 300
A19: F3 - Tilskudd iPark/Dalanerådet | B19: 1079 | C19: -300
A20: Endringer rådmann/ordfører | B20: 1000/1100 | C20: -505 | D20: 140 | E20: 140 | F20: 140 | G20: 140
A21: Områderegulering Eie - ny bydel med mer | B21: 1111 | C21: -200
A22: Revidering kommuneplan | B22: 1111 | C22: -100
A23: Velferdstiltak | B23: 12xx | C23: 200
A24: Kompetanseheving | B24: 1230 | D24: 200 | E24: 200 | F24: 200 | G24: 200
A25: Tilskudd iPark Dalane | B25: 1091 | C25: 100
A26: Reiseliv | B26: 1090 | C26: 100
A27: Næringsjef / studiesenter | C27: 150 | D27: 715 | E27: 715 | F27: 715 | G27: 715
A28: DTP2010 - Landbrukskontoret | B28: 1440 | C28: 75
A29: Økte utgifter andre trossamfunn | B29: 1151 | D29: 100 | E29: 100 | F29: 100 | G29: 100
A30: Flytte husleie Voksenoppl/K-sal | B30: 1010 | C30: -34 | D30: -18 | E30: -18 | F30: -18 | G30: -18
A31: Bortforpaktning Bakkebø gård | B31: 1450 | C31: -75
A32: Reduksjon adm. - endr.pol.struktur | B32: 1340 | C32: -75
A33: Reduksjon politisk struktur | B33: Diverse | C33: -464
A34: Økt ramme Kontrollutvalget | B34: 1041 | C34: -150
A35: Generell rammereduksjon (1041) | B35: 1300 | C35: 65
A36: Flytte stilling mellom Miljø og Sent.adm | B36: 1300 | C36: 175 | D36: 125 | E36: 125 | F36: 125 | G36: 125
A37: PK11 - 50%.st Personalkontoret lønn | B37: 1322 | C37: -45
A38: Opprettelse av lederskole i EK | B38: 1230 | D38: 150 | E38: 150 | F38: 150 | G38: 150
A39: Tilskudd Dalanerådet/Næringssjefen | E39: -800 | F39: -800 | G39: -800
A40: Tilskudd Magma Geopark | E40: -210 | F40: -210 | G40: -210
A41: Tilskudd Visit Dalane | D41: -290 | E41: -290 | F41: -290 | G41: -290
A42: Stilling som Næringsutvikler | E42: 650 | F42: 650 | G42: 650
A43: Overformynderiet over til fylkesmann | D43: -109 | E43: -109 | F43: -109 | G43: -109
A44: Sum varige rammeendringer: | C44: =SUM(C10:C43) -> 606
A46: Tidsbegrensede rammeendringer:
A47: Valg | B47: 1031 | D47: 700
A48: Tilskudd iPark Dalane | B48: 1091 | C48: 300 | D48: 300 | E48: 300 | F48: 300 | G48: 300
A49: Tilskudd Magma Geopark | B49: 1090 | C49: 210 | D49: 210 | E49: 210 | F49: 210 | G49: 210
A50: Flytting av midler - hjemmel | B50: 1300 | C50: 703
A51: Områderegulering Eie og Kaupanes | B51: Diverse | E51: 400
A52: Kommunevalg | B52: 1031 | F52: 700
A53: Sum tidsbegrensede rammenedringer | C53: =SUM(C46:C52) -> 1213
A59: Samlet ramme avd. | C59: =+C7+C44+C53+C8 -> 47871 | D59: =SUM(D7:D53) -> 48518 | E59: =SUM(E7:E53) -> 47858 | F59: =SUM(F7:F53) -> 48058 | G59: =SUM(G7:G53) -> 47358

Sheet D_Kirken
A2: Kirken | G2: Budsjett og økonomiplan
C4: Vedtatte | E4: Økonomiplan
C5: endringer | D5: Budsjett
A6: Drift - endringer | B6: Ansvar | C6: 2012 | D6: 2013 | E6: 2014 | F6: 2015 | G6: 2016
A7: Nettobudsjett | B7: 1150 | C7: 5963 | D7: =+C59 -> 5858 | E7: =+D7 -> 5858 | F7: =+D7 -> 5858 | G7: =+D7 -> 5858
A8: Fratrekk engangsforhold 2012 | B8: 1150 | C8: -205 | D8: =-C22 -> -100 | E8: =-C22 -> -100 | F8: =-C22 -> -100 | G8: =-C22 -> -100
A10: Varige rammeendringer:
A11: Lønnskompensasjon blir gitt (kap 7)
A14: Sum varige rammeendringer | C14: =SUM(C10:C13) -> 0
A17: Tidsbegrensede rammeendringer:
A18: Underskuddsdekning kirken akkumulert | B18: 1150 | C18: 100
A19: Nye mikrofoner | B19: 1150 | D19: 50
A20: Gjennomgang lynvern kirkebygg | B20: 1150 | D20: 75
A21: Nye salmebøker | B21: 1150 | D21: 100
A22: Sum tidsbegrensede rammeendringer | C22: =SUM(C17:C18) -> 100
A59: Samlet ramme avd. | C59: =+C7+C14+C22+C8 -> 5858 | D59: =SUM(D7:D58) -> 5983 | E59: =SUM(E7:E58) -> 5758 | F59: =SUM(F7:F58) -> 5758 | G59: =SUM(G7:G58) -> 5758

Sheet D_Kap 7
A2: Kap. 7 - Fellesfunksjoner | G2: Budsjett og økonomiplan
C4: Vedtatte | E4: Økonomiplan
C5: endringer | D5: Budsjett
A6: Drift - endringer | B6: Ansvar | C6: 2012 | D6: 2013 | E6: 2014 | F6: 2015 | G6: 2016
A7: Nettobudsjett | C7: -7443 | D7: =+C59 -> -2697 | E7: =D7 -> -2697 | F7: =E7 -> -2697 | G7: =F7 -> -2697
A8: Fratrekk engangsforhold 2012 | C8: 30445 | D8: =-C33 -> 30300 | E8: =-C33 -> 30300 | F8: =-C33 -> 30300 | G8: =-C33 -> 30300
A10: Varige rameendringer:
A11: Rammendring overtid | B11: 7100 | C11: 500
A12: Rammeendring sykefravær | B12: 7100 | C12: 750
A13: Forsikringspremie - endring | B13: 7410 | C13: 285 | D13: -5 | E13: -5 | F13: -5 | G13: -5
A14: Rammeendring - kostnader tj. prod. | B14: 7100 | C14: -200
A15: Rammeendring - Stillinger | B15: 7100 | C15: -1640
A16: Rammeendring - Stillinger | B16: 7100 | C16: -1500
A17: Rammeendring - Stillinger | B17: 7100 | C17: 4660
A18: Avsetning lønnspott - helårsvirkning 2012 | B18: 7490 | C18: 2146 | D18: 7554 | E18: 7554 | F18: 7554 | G18: 7554
A19: Avsetning lønnspott - halvårsvirkning 2013 | B19: 7490 | D19: 7500 | E19: 7500 | F19: 7500 | G19: 7500
A20: Pensjon - økte utgifter | B20: 7430 | C20: 1600 | D20: 2400 | E20: 2400 | F20: 2400 | G20: 2400
A21: Endring pensjonskostnader (AFP) | B21: 7430 | C21: -2000
A23: Sum varige rammeendringer | C23: =SUM(C10:C22) -> 4601
A25: Tidsbegrensede rammeendringer:
A26: Bruk av Premieavviksfondet (eget fond EK) | B26: 7430 | C26: -18000
A27: Bruk av Premiefondet i livselskapene | B27: 7430 | C27: -16000
A28: Bruk av årets premieavvik | B28: 7431 | D28: -15000 | E28: -15000 | F28: -15000 | G28: -15000
A29: Premieavvik SPK | B29: 7431 | C29: 2200 | D29: 2200 | E29: 2200 | F29: 2200 | G29: 2200
A30: Premieavvik KLP | B30: 7431 | C30: -1100 | D30: -1100 | E30: -1100 | F30: -1100 | G30: -1100
A31: Premieavvik DNB | B31: 7431 | C31: -3500 | D31: -3000 | E31: -2500 | F31: -2000 | G31: -2000
A32: Amortisert premieavvik - kostnad | B32: 7431 | C32: 6100 | D32: 6000 | E32: 6000 | F32: 6000 | G32: 6000
A33: Sum tidsbegrensede rammeendringer | C33: =SUM(C25:C32) -> -30300
A59: Samlet ramme avd. | C59: =+C7+C23+C33+C8 -> -2697 | D59: =SUM(D7:D58) -> 34152 | E59: =SUM(E7:E58) -> 34652 | F59: =SUM(F7:F58) -> 35152 | G59: =SUM(G7:G58) -> 35152

Sheet D_Skole
A2: Levekårsavdelingen - Skole og oppvekst | G2: Budsjett og økonomiplan
C4: Vedtatte | E4: Økonomiplan
C5: endringer | D5: Budsjett
A6: Drift - endringer | B6: Ansvar | C6: 2012 | D6: 2013 | E6: 2014 | F6: 2015 | G6: 2016
A7: Nettobudsjett | C7: 293551 | D7: =+C59 -> 310720 | E7: =+D7 -> 310720 | F7: =+D7 -> 310720 | G7: =+D7 -> 310720
A8: Fratrekk engangsforhold 2012 | C8: -30 | D8: =-C50 -> 224 | E8: =-C50 -> 224 | F8: =-C50 -> 224 | G8: =-C50 -> 224
A10: Varige rammeendringer:
A11: Lønnsøkninger | B11: Diverse | C11: 7298 | D11: 5123 | E11: 5388 | F11: 5388 | G11: 5388
A12: Økt tilskudd private barnehager | B12: 2501 | C12: 5600 | D12: 4300 | E12: 4500 | F12: 4500 | G12: 4500
A13: Barnehagetiltak - funksjonshemmede barn | B13: 2500 | C13: 2500
A14: Justering SFO-betaling fra foreldre | B14: 2500 | C14: -200 | D14: -400 | E14: -400 | F14: -400 | G14: -400
A15: Økt barnehagebetaling (makspris alle) | B15: 2201 | C15: -150 | D15: -150 | E15: -150 | F15: -150 | G15: -150
A16: Kunnskapsløftet | B16: 2292 | C16: 80
A17: Introduksjonslønn | B17: 2411 | C17: -1520
A18: Annet forbruksmatr. flyktninger | B18: 2411 | C18: -350
A19: Valgfag - endring i Statsbudsjettet | B19: 2100 | C19: 180
A20: Barnevernsvakt - felles interkommunal | B20: 2720 | C20: 300
A21: Barnevern - tiltak utenfor/i familie | B21: 2722 | C21: 2000 | E21: -100 | F21: -300 | G21: -300
A22: Barnevern - tiltak utenfor/i familie | B22: 2722 | C22: -2000
A23: PK11 - avvikle Juliåpen SFO | B23: 2202 | C23: -90
A24: Mottak flyktninger - integrasjonslønn | B24: 2411 | D24: -2020 | E24: -2020 | F24: -2020 | G24: -2020
A25: Mottak flyktninger - sak 2012 | B25: 2411 | C25: 1575 | D25: -120 | E25: -120 | F25: -120 | G25: -120
A26: Uttrekk av penger fra barnehagene-ATO | B26: 2500
A27: Kulturskolen | B27: 2310 | C27: -200
A28: Reetablere Ungdomskontakten | B28: 2830 | C28: 200 | D28: -200 | E28: -200 | F28: -200 | G28: -200
A29: Tidlig innsats - økt stillingsressurs | B29: 2101 | D29: 200 | E29: 200 | F29: 200 | G29: 200
A30: Fremmedspråklige elever | B30: 22xx | C30: 850
A31: Tiltak Husabø skole - div | B31: 2230 | C31: 250
A32: Voksenoppl. - redusert transport pga lokaler | B32: 2410 | D32: -100 | E32: -100 | F32: -100 | G32: -100
A33: Justering for Kulturskoletilbud i SFO | B33: 2200 | D33: 203 | E33: 203 | F33: 203 | G33: 203
A34: Justering for valgfag ungdomsskolen | B34: 2200 | D34: 187 | E34: 187 | F34: 187 | G34: 187
A35: Kulturskolen - redusert tilbud individuell underv. | B35: 2310
A36: Ressurskrevende tjenester barn (Øk.rap) | B36: 2200/2500 | C36: 2775 | D36: -1100 | E36: -2200 | F36: -2200 | G36: -2200
A37: Ressurskrevende tjenester barn (forslag) | B37: 2200/2500 | D37: -500 | E37: -1000 | F37: -1000 | G37: -1000
A38: Flytting av hjemmel til HO | B38: 2501 | D38: -224 | E38: -224 | F38: -224 | G38: -224
A39: Økt foreldrebetaling - forsterket SFO - helår | B39: 2000 | D39: -600 | E39: -600 | F39: -600 | G39: -600
A40: Ny Giv - Tiltak mot 10. kl gitte elever | B40: 2200 | D40: 150 | E40: 150 | F40: 150 | G40: 150
A41: F3 - Totalt 3 st SFO/tiltak/skole/barneh. | B41: 2100 | C41: -50
A42: PK11 - Helleland ungdomsskole | B42: 2250 | C42: -520
A43: PK11 - avvikle Ungdomskontakten | B43: 2830 | C43: -730
A44: PK11 - 60%-stillingskutt Voksenoppl. | B44: 2410 | C44: -195
A45: PK11 - Stillingsred. PPT | B45: 2101 | C45: -180
A46: Sum varige rammeendringer: | C46: =SUM(C10:C45) -> 17423
A48: Tidsbegrensede rammeendringer:
A49: Flytting av midler fra hjemmel | C49: -224
A50: Sum tidsbegrensede rammeendringer | C50: =SUM(C48:C49) -> -224
A59: Samlet ramme avd. | C59: =+C7+C46+C50+C8 -> 310720 | D59: =SUM(D7:D58) -> 315693 | E59: =SUM(E7:E58) -> 314458 | F59: =SUM(F7:F58) -> 314258 | G59: =SUM(G7:G58) -> 314258

Sheet D_H_O
A2: Levekårsavdelingen - Helse- og omsorg | G2: Budsjett og økonomiplan
C4: Vedtatte | E4: Økonomiplan
C5: endringer | D5: Budsjett
A6: Drift - endringer | B6: Ansvar | C6: 2012 | D6: 2013 | E6: 2014 | F6: 2015 | G6: 2016
A7: Nettobudsjett | C7: 296290 | D7: =+C59 -> 318134 | E7: =+D7 -> 318134 | F7: =+D7 -> 318134 | G7: =+D7 -> 318134
A8: Fratrekk engangsforhold 2012 | C8: 0 | D8: =-C48 -> 824 | E8: =-C48 -> 824 | F8: =-C48 -> 824 | G8: =-C48 -> 824
A10: Varige rammeendringer:
A11: Lønnsøkninger | B11: Diverse | C11: 9453 | D11: =7367+70 -> 7437 | E11: =7677+70 -> 7747 | F11: =7677+70 -> 7747 | G11: =7677+70 -> 7747
A12: Endring finansiering Krisesenter | B12: 3100 | C12: 27 | D12: -400 | E12: -400 | F12: -400 | G12: -400
A13: Prisjustering tilskudd Voldtektsmottak | B13: 3100 | C13: 13
A14: Korttidslager - sommeråpent | B14: 3221 | C14: 25
A15: Drift av legevakt kveld- og natt | B15: 3230 | C15: 620
A16: Medhjelper legevakt - sommerferie | B16: 3230 | C16: 65
A17: Programvarelisens legevakt | B17: 3230 | C17: 20
A18: Rusforebyggende tiltak/tidlig innsats | B18: 3592 | D18: 500 | E18: 700 | F18: 700 | G18: 700
A19: Statsbudsjett - rustiltak | B19: 3592 | D19: 682 | E19: 682 | F19: 682 | G19: 682
A20: Tilskudd til Fyrlyssenteret | B20: 3304 | D20: -1220 | E20: -1220 | F20: -1220 | G20: -1220
A21: Lønnsreguleringer legeavtaler | B21: Diverse | D21: 275 | E21: 275 | F21: 275 | G21: 275
A22: Lønnsreguleringer fysioterapeuter | B22: Diverse | D22: 115 | E22: 115 | F22: 115 | G22: 115
A23: Ressurskrevende tjenester - ny bruker | B23: 35xx | D23: 350 | E23: 700 | F23: 700 | G23: 700
A24: G-regulering Kvalifiseringsprogram | B24: 3305 | C24: 190 | D24: 122 | E24: 122 | F24: 122 | G24: 122
A25: Red. sosialutbetalinger | B25: 3305 | C25: -1000
A26: Reduksjon kommunale avgifter Slettebø | B26: 3410 | C26: -554
A27: Nedbemanning Overgangsboliger | B27: 3591 | C27: -2700
A28: Prisjustering TIPO( ress.tj.) | B28: 3594 | C28: 180 | D28: 150 | E28: 150 | F28: 150 | G28: 150
A29: Brukerbetalinger | B29: Diverse | C29: -50 | D29: -5 | E29: -10 | F29: -15 | G29: -20
A30: Medisindosetter | B30: 3xxx | C30: 95
A31: Div. prisreguleringer - avtaler | B31: Diverse | C31: 360 | D31: 410 | E31: 410 | F31: 410 | G31: 410
A32: IBO - flytting mellom Miljø og HO | B32: 3410 | D32: 150 | E32: 150 | F32: 150 | G32: 150
A33: Red. vertskom.tilskudd | B33: Diverse | C33: -1000 | D33: -1000 | E33: -2000 | F33: -3000 | G33: -4000
A34: Mottak flyktninger - økt sosialstøtte | B34: 3302 | C34: 690 | D34: 130 | E34: 190 | F34: 190 | G34: 190
A35: Avvikling tiltak mot barn pga. flytting | B35: 3560 | C35: -250
A36: Avdelingsleder 2 Vest 60% | B36: 3711 | C36: 390
A37: Kveldsvakt Kjerjaneset | B37: 3603 | C37: 675 | D37: 45 | E37: 45 | F37: 45 | G37: 45
A38: Deling Levekårsjef - HO-sjef/Skole- og oppvekst | B38: 3100 | D38: 570 | E38: 570 | F38: 570 | G38: =495+75 -> 570
A39: Overføring av hjemmel | B39: 3100 | D39: -129 | E39: -129 | F39: -129 | G39: =+E39 -> -129
A40: Samhandlingsreformen - innfasing | B40: 3000 | C40: 15164 | D40: 690 | E40: 690 | F40: 690 | G40: 690
A41: Samhandling - Kvalitetssikring 30% 2-vest | B41: 3711 | C41: 200
A42: Samhandling - Konsulent 10% stilling | B42: 3100 | C42: 55
A43: Sum varige rammeendringer | C43: =SUM(C10:C42) -> 22668
A45: Tidsbegrensede rammeendringer:
A46: Flytting stilling - hjemmel | C46: -481
A47: IBO - endringer | C47: -343
A48: Sum tidsbegrensede rammeendringer | C48: =SUM(C45:C47) -> -824
A59: Samlet ramme avd. | C59: =+C7+C43+C48+C8 -> 318134 | D59: =SUM(D7:D58) -> 327830 | E59: =SUM(E7:E58) -> 327745 | F59: =SUM(F7:F58) -> 326740 | G59: =SUM(G7:G58) -> 325735

Sheet D_Kultur
A2: Levekårsavdelingen - Kultur | G2: Budsjett og økonomiplan
C4: Vedtatte | E4: Økonomiplan
C5: endringer | D5: Budsjett
A6: Drift - endringer | B6: Ansvar | C6: 2012 | D6: 2013 | E6: 2014 | F6: 2015 | G6: 2016
A7: Nettobudsjett | C7: 11282 | D7: =C59 -> 12197 | E7: =+D7 -> 12197 | F7: =+D7 -> 12197 | G7: =+D7 -> 12197
A8: Fratrekk engangsforhold 2012 | C8: -55 | D8: =-C32 -> -100 | E8: =-C32 -> -100 | F8: =-C32 -> -100 | G8: =-C32 -> -100
A10: Varige rammeendringer:
A11: Lønnsendringer | B11: Diverse | C11: 176 | D11: 82 | E11: 82 | F11: 82 | G11: 82
A12: Kiosk - redusert kioskvarer | B12: 5111 | C12: -50
A13: Indeksregulering tilskudd DFM | B13: 5120 | C13: 50 | D13: 55 | E13: 55 | F13: 55 | G13: 55
A14: Økt husleie Biblioteket | B14: 5210 | C14: 25
A15: Økt husleie Pingvinen | B15: 5320 | C15: 38
A16: Pingvinen redusert inntekter | B16: 5320 | C16: 40
A17: Kinoen - div regulering | B17: 5410 | C17: 215
A18: Kulturhus - div. reguleringer | B18: 5500 | C18: -210
A19: Korrigering | B19: Diverse | C19: 531
A20: Leieinntekter Byteltet | B20: 5610 | C20: 60
A21: Indeksregulering - lag og foreninger | B21: 5720 | C21: 65
A22: Billettavgift 25 kroner | B22: 5610 | C22: -70
A23: Økt inntekt kino (balanse) | B23: 5410 | D23: -500 | E23: -500 | F23: -500 | G23: -500
A24: Endret åpningstid (st) Biblioteket | B24: 5210 | D24: -80 | E24: -160 | F24: -160 | G24: -160
A25: Kulturadministrasjon - red. diverse poster | B25: 5100 | D25: -80 | E25: -80 | F25: -80 | G25: -80
A26: Red. st Regionantikvar | B26: 5110 | D26: -260 | E26: -320 | F26: -320 | G26: -320
A27: Sum varige rammeendringer | C27: =SUM(C10:C26) -> 870
A29: Tidsbegrensede rammeendringer:
A30: Tilskudd DFM - prosjekt Bakkebø | B30: 5120 | D30: 50
A31: Kulturfestival i Dalane | B31: 5914 | C31: 100 | D31: 0 | E31: 100 | F31: 0 | G31: 100
A32: Sum tidsbegrensede rammendringer | C32: =SUM(C29:C31) -> 100
A59: Samlet ramme avd. | C59: =+C7+C27+C32+C8 -> 12197 | D59: =SUM(D7:D58) -> 11364 | E59: =SUM(E7:E58) -> 11274 | F59: =SUM(F7:F58) -> 11174 | G59: =SUM(G7:G58) -> 11274

Sheet D_Miljø
A2: Miljøavdelingen | G2: Budsjett og økonomiplan
C4: Vedtatte | E4: Økonomiplan
C5: endringer | D5: Budsjett
A6: Drift - endringer | B6: Ansvar | C6: 2012 | D6: 2013 | E6: 2014 | F6: 2015 | G6: 2016
A7: Nettobudsjett | C7: 64498 | D7: =C59 -> 68411 | E7: =+D7 -> 68411 | F7: =+D7 -> 68411 | G7: =+D7 -> 68411
A8: Fratrekk engangsforhold 2012 | C8: 460 | D8: =-C47 -> -504 | E8: =-C47 -> -504 | F8: =-C47 -> -504 | G8: =-C47 -> -504
A10: Varige rammeendringer:
A11: Lønnsendringer | B11: Diverse | C11: 1675 | D11: =1010+25 -> 1035 | E11: 1035 | F11: 1035 | G11: 1035
A12: Økt husleie | B12: 6310 | C12: -2000 | D12: 95 | E12: 95 | F12: 95 | G12: 95
A13: Vedlikehold lekeplasser | B13: 6720 | D13: 40 | E13: 80 | F13: 120 | G13: 160
A14: Utskifting større anleggsmaskiner | B14: 6770 | D14: -200 | E14: -200 | F14: -200 | G14: -200
A15: Utskifting kjøretøy | B15: Diverse | D15: -60 | E15: -60 | F15: -60 | G15: -60
A16: Utskifting av mindre maskiner | B16: Diverse | D16: -30 | E16: -30 | F16: -30 | G16: -30
A17: Brann - lønnskomp vikar, kveld/natttill. | B17: 6510 | D17: 150 | E17: 150 | F17: 150 | G17: 150
A18: Drift av nye brakker Husabø | B18: 6310 | C18: 50
A19: Tap på krav (husleie) | B19: 6310 | D19: 100 | E19: 100 | F19: 100 | G19: 100
A20: Parkeringsgebyrinntekt faller ut | B20: 6510 | C20: 225
A21: Reele driftsutgifter vei (tidl. merforbruk) | B21: 6770 | C21: 1000
A22: Vedlikehold veier/bygg | B22: 6310/6770 | D22: 0
A23: Div. prisreguleringer | B23: Diverse | C23: 1000 | D23: 150 | E23: 150 | F23: 150 | G23: 150
A24: Vedlikehold gravlund/idrettsanlegg | B24: 6720/6730 | D24: 70 | E24: 70 | F24: 70 | G24: 70
A25: Verneutstyr Brann | B25: 6510 | D25: 50 | E25: 50 | F25: 50 | G25: 50
A26: Grøne Bråden skole - forsterket avd. | B26: 6310 | C26: 120
A27: Hellvik barnehage - tilbygg | B27: 6310 | C27: 45
A28: Steingården - luftbehandlingsanlegg | B28: 6310 | C28: 25
A29: Ventilasjonsanlegg Kulturhus | B29: 6311 | D29: -90 | E29: -90 | F29: -90 | G29: -90
A30: Driftsmessige konsekv. utvidet ATO | B30: 6310 | C30: 70
A31: F3 - økt leie båthus og plasser | B31: 6740 | C31: 450
A32: Energiutgifter -10% | B32: 6311 | C32: 250 | D32: -1750 | E32: -1750 | F32: -1750 | G32: -1750
A33: Brukerbetaling | B33: Diverse | C33: -50 | D33: -5 | E33: -10 | F33: -15 | G33: -20
A34: IBO - flytting mellom Miljø og HO | B34: 6310 | D34: -150 | E34: -150 | F34: -150 | G34: -150
A35: Flytte stilling mellom Miljø og Sent.adm | B35: 6100 | C35: -175
A36: Utg. nye lokaler Voksenopplæringsent/HO | B36: 6310 | C36: 264 | D36: 457 | E36: 645 | F36: 781 | G36: 781
A37: Flytting av hjemmel | B37: 6770 | D37: 540 | E37: 540 | F37: 540 | G37: =+E37 -> 540
A38: Sum varige rammeendringer | C38: =SUM(C10:C37) -> 2949
A40: Tidsbegrensede rammeendringer:
A41: Kommunalsjef Teknisk halvårsvirkning | B41: 6100 | C41: 4
A42: Lovpålagt brokontroll i kommunen | B42: 6770 | E42: 100 | F42: 100
A43: Pålagt utskifting av gammel diseltank | B43: 6770 | D43: 150
A44: Maling Lundeåne | B44: 6310 | G44: 600
A45: Eiendomstaksering - eiendomsskatt | B45: 6411 | G45: 500
A46: Finansutgifter | B46: 6100 | C46: 500
A47: Sum tidsbegrensede rammeendringer | C47: =SUM(C40:C46) -> 504
A59: Samlet ramme avd. | C59: =+C7+C38+C47+C8 -> 68411 | D59: =SUM(D7:D58) -> 68459 | E59: =SUM(E7:E58) -> 68632 | F59: =SUM(F7:F58) -> 68803 | G59: =SUM(G7:G58) -> 69838

Sheet Inv_totalt
A2: Finansiering av investeringene | H2: Budsjett og økonomiplan
D4: Justert | F4: Økonomiplan
D5: budsjett | E5: Budsjett
A6: Investeringer | B6: Prosjekt | D6: 2012 | E6: 2013 | F6: 2014 | G6: 2015 | H6: 2016
A8: Den enkelte sektor
A9: Sentraladministrasjonen | D9: =+I_Sentr_!C59 -> 3515 | E9: =+I_Sentr_!D59 -> 4850 | F9: =+I_Sentr_!E59 -> 3500 | G9: =+I_Sentr_!F59 -> 3500 | H9: =+I_Sentr_!G59 -> 3100
A10: Kirken | D10: =+I_Kirken!C59 -> 0 | E10: =+I_Kirken!D59 -> 7950 | F10: =+I_Kirken!E59 -> 6800 | G10: =+I_Kirken!F59 -> 5000 | H10: =+I_Kirken!G59 -> 1800
A11: Levekårsavdelingen - Skole/BH | D11: =+I_Skole!C59 -> 21925 | E11: =+I_Skole!D59 -> 12550 | F11: =+I_Skole!E59 -> 6850 | G11: =+I_Skole!F59 -> 1000 | H11: =+I_Skole!G59 -> 1500
A12: Levekårsavdelingen - HO | D12: =+I_H_O!C59 -> 905 | E12: =+I_H_O!D59 -> 3675 | F12: =+I_H_O!E59 -> 175 | G12: =+I_H_O!F59 -> 175 | H12: =+I_H_O!G59 -> 0
A13: Levekårsavdelingen - Kultur | D13: =+I_Kultur!C59 -> 0 | E13: =+I_Kultur!D59 -> 0 | F13: =+I_Kultur!E59 -> 0 | G13: =+I_Kultur!F59 -> 800 | H13: =+I_Kultur!G59 -> 0
A14: Vannsektoren | D14: =+I_VAR!C16 -> 5400 | E14: =+I_VAR!D16 -> 6100 | F14: =+I_VAR!E16 -> 2500 | G14: =+I_VAR!F16 -> 4500 | H14: =+I_VAR!G16 -> 20500
A15: Avløpssektoren | D15: =+I_VAR!C31 -> 18800 | E15: =+I_VAR!D31 -> 11500 | F15: =+I_VAR!E31 -> 5500 | G15: =+I_VAR!F31 -> 7000 | H15: =+I_VAR!G31 -> 3000
A16: Miljøavdelingen | D16: =+I_Miljø!C59 -> 119700 | E16: =+I_Miljø!D59 -> 23300 | F16: =+I_Miljø!E59 -> 31700 | G16: =+I_Miljø!F59 -> 15600 | H16: =+I_Miljø!G59 -> 41300
A17: Investeringer i anleggsmidler | D17: =SUM(D8:D16) -> 170245 | E17: =SUM(E8:E16) -> 69925 | F17: =SUM(F8:F16) -> 57025 | G17: =SUM(G8:G16) -> 37575 | H17: =SUM(H8:H16) -> 71200
A19: Start lån | B19: 1196 | D19: 20000 | E19: 20000 | F19: 20000 | G19: 20000 | H19: 20000
A21: Årlig finansieringsbehov | D21: =+D17+D19 -> 190245 | E21: =+E17+E19 -> 89925 | F21: =+F17+F19 -> 77025 | G21: =+G17+G19 -> 57575 | H21: =+H17+H19 -> 91200
A23: Finansiering
A24: Bruk av rentefrie skolelån | B24: 1999
A25: Lån Hestnes-Rundevoll | B25: 1890 | D25: 100000
A26: Bruk av lånemidler (VA) | B26: 1999 | D26: 24200 | E26: 17600 | F26: 8000 | G26: 11500 | H26: 23500
A27: Bruk av lånemidler (kommunalt) | B27: 1999 | D27: 34300 | E27: 38000 | F27: 37000 | G27: 14500 | H27: 37000
A28: Låneopptak Start lån | B28: 1196 | D28: 20000 | E28: 20000 | F28: 20000 | G28: 20000 | H28: 20000
A29: Sum ekstern finansiering | D29: =SUM(D23:D28) -> 178500 | E29: =SUM(E23:E28) -> 75600 | F29: =SUM(F23:F28) -> 65000 | G29: =SUM(G23:G28) -> 46000 | H29: =SUM(H23:H28) -> 80500
A31: Avsetning til Investeringfondet | B31: 1999 | D31: 2950 | E31: =+E37 -> 2950 | F31: 2950 | G31: 2950 | H31: 2950
A32: Avsetning til Tomteutv.fondet | B32: 1999 | E32: 1000 | F32: 3000 | G32: 5000 | H32: 1000
A34: Egenkapital
A35: Bidrag fra drift (mva-refusjon) | B35: 1999 | D35: 6400 | E35: 4000 | F35: 2500 | G35: 2400 | H35: 350
A36: Bruk av investeringsfondet | B36: 1999 | D36: 145 | E36: 1525 | F36: =325-100+1000+900 -> 2125 | G36: 375 | H36: 150
A37: Avdrag ansvarlig lån Lyse | B37: 1999 | D37: 2950 | E37: 2950 | F37: 2950 | G37: 2950 | H37: 2950 | I37: ,
A38: Salg av tomter | B38: 1999 | D38: 950 | E38: 1000 | F38: =1000+2000 -> 3000 | G38: 5000 | H38: =1000 -> 1000
A39: Refusjon infrastruktur tomter | B39: 1999 | E39: 2300 | F39: 2300 | G39: =2300+3000 -> 5300 | H39: =2300+400+6000 -> 8700
A40: Salg av bygninger | B40: 1999 | E40: 1000 | F40: 1500 | G40: 1500 | H40: 1500
A41: Bruk av Tomteutviklingfondet | B41: 1999 | D41: 4250 | E41: 3000 | F41: 3600 | G41: 2000
A42: Brukt av Vertskommunetilsk.fond | B42: 1999 | E42: 2500
A43: Sum egenkapital | D43: =SUM(D34:D42) -> 14695 | E43: =SUM(E34:E42) -> 18275 | F43: =SUM(F34:F42) -> 17975 | G43: =SUM(G34:G42) -> 19525 | H43: =SUM(H34:H42) -> 14650
A51: Udekket / udisponert | D51: =+D21-D29-D43+D31 -> 0 | E51: =+E21-E29-E43+E32+E31 -> 0 | F51: =+F21-F29-F43+F32+F31 -> 0 | G51: =+G21-G29-G43+G32+G31 -> 0 | H51: =+H21-H29-H43+H32+H31 -> 0

Sheet I_Sentr_
A2: Sentraladministrasjonen | G2: Budsjett og økonomiplan
C4: Justert | E4: Økonomiplan
C5: budsjett | D5: Budsjett
A6: Investeringer | B6: Prosjekt | C6: 2012 | D6: 2013 | E6: 2014 | F6: 2015 | G6: 2016
A7: Nye PC'er/servere | B7: 111005 | C7: 150 | D7: 250 | E7: 250 | F7: 250 | G7: 250
A8: IKT-skolene utskifting eksisterende utstyr | B8: 111020 | C8: 200 | D8: 200 | E8: 200 | F8: 200 | G8: 200
A9: Oppgradering software | B9: 111018 | C9: 100 | D9: 200 | E9: 200 | F9: 200 | G9: 200
A10: Nettverk | B10: 111009 | C10: 150 | D10: 250 | E10: 250 | F10: 250 | G10: 250
A11: Oppgradering av IKT-utstyr – HO | B11: 111030 | C11: 100 | D11: 250 | E11: 250 | F11: 250 | G11: 250
A12: Oppgradering av felles utstyr/servere | B12: 111041 | C12: 300 | D12: 300 | E12: 300 | F12: 300 | G12: 300
A13: IP-telefoni | B13: 1117 | C13: 250 | D13: 150 | E13: 150 | F13: 150 | G13: 150
A14: IKT-sikkerhet | B14: 111038 | C14: 100 | D14: 100 | E14: 100 | F14: 100 | G14: 100
A15: Elektroniske skjema/Bank-ID | B15: 111002 | C15: 75 | D15: 100 | E15: 100 | F15: 100 | G15: 100
A16: Nytt IKT-utstyr skolene (økt tetthet) | B16: 111020 | C16: 750 | D16: 750 | E16: 750 | F16: 750 | G16: 750
A17: Integrasjon mellom ulike system | B17: 111021 | C17: 200 | D17: 200 | E17: 200 | F17: 200 | G17: 200
A18: IKT-utstyr barnehagene | B18: 111022 | F18: 200 | G18: 200
A19: FEIDE | B19: 111023 | C19: 100
A20: Data til folkevalgte (egen sak) | B20: 111045 | F20: 400
A21: Oppgradering HSPro (e-melding) | B21: 111025 | C21: 190
A22: Oppgradering E-post/kalenderløsning | B22: 111026 | C22: 400
A23: Oppgradering Sak-/arkivløsing | B23: 111027 | C23: 300 | D23: 500
A24: Notus Portal | B24: 111028 | D24: 250
A25: Selvbetjeningsautomat Biblioteket | B25: 111029 | D25: 100
A26: PC-er til elever med spesielle behov | B26: 111040 | C26: 150 | D26: 150 | E26: 150 | F26: 150 | G26: 150
A27: Bilfond | B27: 1105 | D27: 500
A28: Digitalisering av reguleringsplaner | B28: 1150 | D28: 600 | E28: 600
A59: Samlet ramme avd. | C59: =+SUM(C7:C58) -> 3515 | D59: =SUM(D7:D58) -> 4850 | E59: =SUM(E7:E58) -> 3500 | F59: =SUM(F7:F58) -> 3500 | G59: =SUM(G7:G58) -> 3100

Sheet I_Kirken
A2: Kirken | G2: Budsjett og økonomiplan
C4: Justert | E4: Økonomiplan
C5: budsjett | D5: Budsjett
A6: Investeringer | B6: Prosjekt | C6: 2012 | D6: 2013 | E6: 2014 | F6: 2015 | G6: 2016
A7: Ny gravlund - Egersund | B7: 1585 | D7: 5000 | E7: 5000 | F7: 5000
A8: Nytt tak Bakkebø kirke | B8: 1586 | D8: 1000
A9: Nytt tak Egersund kirke | B9: 1587 | D9: 1000
A10: Renovering Egersund kirke | B10: 1588 | D10: 750
A11: Renovering Gamle Prestegårdsvei | B11: 1589 | D11: 200
A12: Nye toalett og nødutgang Bakkebø kirke | B12: 1590 | G12: 1200
A13: Nye toalett Egersund kirke | B13: 1591 | G13: 600
A14: Vanntåkleanlegg Egersund kirke | B14: 1592 | E14: 1800
A59: Samlet ramme avd. | C59: =SUM(C7:C58) -> 0 | D59: =SUM(D7:D58) -> 7950 | E59: =SUM(E7:E58) -> 6800 | F59: =SUM(F7:F58) -> 5000 | G59: =SUM(G7:G58) -> 1800

Sheet I_Skole
A2: Levekårsavdelingen - Skole og oppvekst | G2: Budsjett og økonomiplan
C4: Justert | E4: Økonomiplan
C5: budsjett | D5: Budsjett
A6: Investeringer | B6: Prosjekt | C6: 2012 | D6: 2013 | E6: 2014 | F6: 2015 | G6: 2016
A7: Grøne Bråden skole - kledning/vinduer | B7: 1252 | E7: 850
A8: Lagård u.skole - bygg P og G | B8: 1253 | D8: 1300 | E8: 0
A9: Lagård ungd.skole - nytt skolekjøkken | B9: 1255 | C9: 3000 | D9: 2000
A10: Hellvik barnehage - tilbygg | B10: 1256 | C10: 6500
A11: Eigerøy skole - bygningstek. oppgrad. | B11: 1203 | D11: 1500 | E11: 6000
A12: Hellvik skole - branntekn. oppgrad. | B12: 1204 | C12: 150
A13: Husabø barnesk.-utv.malig, nye vinduer | B13: 1208 | D13: 2100
A14: Helleland skole - Ventilasjon/div utbedringer | B14: 1815 | C14: 11800
A15: Husabø b skole- Bygningsmasse forprosj. | B15: 1220 | D15: 500
A16: Husabø u skole- Tilsynskrav brannteknisk | B16: 1221 | F16: 1000 | G16: 1500
A17: Husabø u skole- personaltoaletter | B17: 1222 | C17: 200 | D17: 150
A18: Rundevoll barnehage utvidelse garderobe | B18: 1223 | C18: 275
A19: Modulbygg - Husabø skolene | B19: 1215 | D19: 5000
A59: Samlet ramme avd. | C59: =SUM(C7:C58) -> 21925 | D59: =SUM(D7:D58) -> 12550 | E59: =SUM(E7:E58) -> 6850 | F59: =SUM(F7:F58) -> 1000 | G59: =SUM(G7:G58) -> 1500

Sheet I_H_O
A2: Levekårsavdelingen - Helse- og omsorg | G2: Budsjett og økonomiplan
C4: Justert | E4: Økonomiplan
C5: budsjett | D5: Budsjett
A6: Investeringer | B6: Prosjekt | C6: 2012 | D6: 2013 | E6: 2014 | F6: 2015 | G6: 2016
A7: Inventar/utstyr HO | B7: 1333 | C7: 100 | D7: 100 | E7: 100 | F7: 100
A8: Trygghetsalarmer og nøkkelbokser | B8: 1303 | C8: 75 | D8: 75 | E8: 75 | F8: 75
A9: Lysgården (Tyrigården) - trappeheis | B9: 1326 | C9: 100
A10: Lysgården buss | B10: 1320 | D10: 600
A11: Lagård-komplekset inventar | B11: 1327 | C11: 260
A12: Samhandling - Medisinrom 2-vest | B12: 1310 | C12: 70
A13: Samhandling - Ombygging av pas.rom | B13: 1311 | C13: 200
A14: Samhandling - Pasientutstyr | B14: 1312 | C14: 100 | D14: 100
A15: Prosjekteringsmidler nytt senter Lagård | B15: 1315 | D15: 2500
A16: Hvilestoler 2-vest | B16: 1333 | D16: 300
A59: Samlet ramme avd. | C59: =SUM(C7:C58) -> 905 | D59: =SUM(D7:D58) -> 3675 | E59: =SUM(E7:E58) -> 175 | F59: =SUM(F7:F58) -> 175 | G59: =SUM(G7:G58) -> 0

Sheet I_Kultur
A2: Levekårsavdelingen - Kultur | G2: Budsjett og økonomiplan
C4: Justert | E4: Økonomiplan
C5: budsjett | D5: Budsjett
A6: Investeringer | B6: Prosjekt | C6: 2012 | D6: 2013 | E6: 2014 | F6: 2015 | G6: 2016
A7: Kulturhuset - heis til stor sal (univ.utf.) | B7: 1502 | F7: 800
A59: Samlet ramme avd. | C59: =SUM(C7:C58) -> 0 | D59: =SUM(D7:D58) -> 0 | E59: =SUM(E7:E58) -> 0 | F59: =SUM(F7:F58) -> 800 | G59: =SUM(G7:G58) -> 0

Sheet I_VAR
A2: Vann og avløp | G2: Budsjett og økonomiplan
C4: Justert | E4: Økonomiplan
C5: budsjett | D5: Budsjett
A6: Investeringer | B6: Prosjekt | C6: 2012 | D6: 2013 | E6: 2014 | F6: 2015 | G6: 2016
A7: Vannforsyning
A8: Tiltak på vannledningsnettet | B8: 1647 | C8: 500 | D8: 500 | E8: 500 | F8: 500 | G8: 500
A9: Vann Nordre Eigerøy | B9: 1601 | C9: 600 | D9: 600
A10: Planlegging/utbygging ny vannkilde | B10: 1604 | E10: 2000 | G10: 20000
A11: Sanering vannledning sentrum | B11: 1605 | F11: 4000
A12: Varebiler | B12: 1618 | C12: 800
A13: Vann Seglem | B13: 1901 | C13: 500
A14: Sanering Kjeld Buggesgate | B14: 1900 | C14: 1500
A15: Utbedring dam Helleland vannverk. | B15: 1610 | C15: 1500 | D15: 5000
A16: Sum vannforsyning | C16: =SUM(C7:C15) -> 5400 | D16: =SUM(D7:D15) -> 6100 | E16: =SUM(E7:E15) -> 2500 | F16: =SUM(F7:F15) -> 4500 | G16: =SUM(G7:G15) -> 20500
A18: Avløp
A19: Tiltak på avløpsnettet | B19: 1697 | C19: 1000 | D19: 500 | E19: 500 | F19: 1000 | G19: 1000
A20: Oppgradering Skjerpe renseanlegg | B20: 1651 | E20: 4000
A21: Avløp Skadberg -Ystebrød m/renseanl. | B21: 1669 | C21: 4000 | D21: 4000
A22: Mjølhus - avløp | B22: 1902 | C22: 1500
A23: Nye kloakkpumpestasjoner | B23: 1650 | C23: 1000 | D23: 1000 | E23: 1000 | F23: 1000
A24: Varebiler | B24: 1660 | C24: 800
A25: Sanering Kjeld Buggesgate - avløp | B25: 1900 | C25: 2500
A26: Sanering Strandgt. - Lervika | B26: 1659 | D26: 2000
A27: Gamle Eigerøyvein - slamavskiller/ledningsnett | B27: 1962 | G27: 2000
A28: Avløp - Rundevollsveien | B28: 1654 | C28: 3000 | D28: 4000
A29: Avløp - Renovering Fotland - Tengs | B29: 1656 | C29: 5000
A30: Sanering avløpsledning sentrum | B30: 1657 | F30: 5000
A31: Sum avløp | C31: =SUM(C18:C30) -> 18800 | D31: =SUM(D18:D30) -> 11500 | E31: =SUM(E18:E30) -> 5500 | F31: =SUM(F18:F30) -> 7000 | G31: =SUM(G18:G30) -> 3000
A59: Samlet ramme avd. | C59: =+C16+C31 -> 24200 | D59: =+D16+D31 -> 17600 | E59: =+E16+E31 -> 8000 | F59: =+F16+F31 -> 11500 | G59: =+G16+G31 -> 23500

Sheet I_Miljø
A2: Miljøavdelingen | G2: Budsjett og økonomiplan
C4: Justert | E4: Økonomiplan
C5: budsjett | D5: Budsjett
A6: Investeringer | B6: Prosjekt | C6: 2012 | D6: 2013 | E6: 2014 | F6: 2015 | G6: 2016
A7: Ny brannbil (1988 skiftes ut) | B7: 1987 | G7: 4200
A8: Vaktbiler brannvesen (2 stk 2012/2013) | B8: 1986 | C8: 250 | D8: 250
A9: Forventet rep av bru - lovpålagt kontroll | B9: 1709 | D9: 150 | E9: 100
A10: Utstyr til vintervedlikehold (vei/utemiljø) | B10: 1981 | D10: 400 | E10: 200 | F10: 200 | G10: 200
A11: Utbygging av delfelt Tuå 2 | B11: 1888 | G11: 500
A12: Utbygging Ramsland - delfelt | B12: 1893 | E12: 400 | F12: 3000
A13: Skaterampe | B13: 1418 | C13: 200
A14: Tiltak på veianlegg | B14: 1711 | C14: 400 | D14: 500 | E14: 500 | F14: 500 | G14: 500
A15: Utskifting lastebil | B15: 1981 | C15: 0 | D15: 1400
A16: Egenandel trafikksikerhetstiltak | B16: 1774 | C16: 500 | D16: 500 | E16: 500 | F16: 500 | G16: 500
A17: Utskifting hjulgraver til veidrift | B17: 1981 | G17: 1500
A18: Nærmiljøanlegg | B18: 1414 | C18: 100 | D18: 100 | E18: 100 | F18: 100 | G18: 100
A19: Friluftsomåder | B19: 1425 | C19: 250 | D19: 250 | E19: 250 | F19: 250 | G19: 250
A20: Utskifting bil m/plan (transporter) og varebil | B20: 1713 | F20: 800
A21: Opprustning lekeplasser | B21: 1401 | C21: 500 | D21: 1000 | E21: 1000 | F21: 1000 | G21: 1000
A22: Utksifting utstyrbærere (Wille) | B22: 1981 | E22: 1500
A23: Renovering kommunale bygninger | B23: 1830 | C23: 500 | D23: 1000 | E23: 1000 | F23: 1000 | G23: 1000
A24: Utskifting 2 varebiler m/4 hjulstrekk | B24: 1713 | G24: 800
A25: Geovekstprosjekt FKB-data (Oppmåling) | B25: 1837 | C25: 600
A26: Oppgradering Kjeld Buggesgate | B26: 1702 | C26: 2300
A27: Rådhuset - Brannteknisk oppgradering | B27: 1822 | C27: 1700 | D27: 300
A28: Fjellheim-isolering vegger,vinduer,dører | B28: 1821 | E28: 2400 | F28: 1000
A29: Midler til flomsikring | B29: 1101 | C29: 1000 | D29: 1000 | E29: 1000
A30: Større renoveringsprosjekt veisektor | B30: 1714 | C30: 3000 | D30: 3000 | E30: 3000 | F30: 2000 | G30: 3000
A31: Utskifting mindre maskiner/utstyr vei | B31: 1981 | D31: 250 | E31: 250 | F31: 250 | G31: 250
A32: Utbygging Hestnes-Rundevoll | B32: 1890 | C32: 100000 | D32: 5000 | E32: 15000 | G32: 20000
A33: Minibuss transportavdelingen | B33: 1417 | C33: 450 | F33: 450
A34: Skolevei Vadlåsen (Grautgramsen) | B34: 1705 | C34: 500 | D34: 300
A35: Egersundshallen - univ.utf./wc | B35: 1838 | F35: 200
A36: Egersundshallen - sandfilter | B36: 1839 | C36: 750
A37: Egersundshallen | B37: 1840 | C37: 300 | G37: 500
A38: Rådhus -varmestyringsanlegg | B38: 1841 | D38: 500
A39: Rådhus - Kloakk/avløp | B39: 1842 | C39: 300
A40: Stallkroa - tilrettelegging for utleie | B40: 1843 | C40: 250
A41: Tengsareidveien 2 og 3 - Base | B41: 1844 | C41: 250 | D41: 200 | F41: 250 | G41: 4000
A42: Erverv grunnareal | B42: 1880 | C42: 2000 | D42: 3000 | E42: 3600 | F42: 2000
A43: Opparbeidelse tomter Kabelhusvn. | B43: 1891 | C43: 1200
A44: Oppmålingsutstyr (kikkert + GPS) | B44: 1792 | F44: 300
A45: Kart i 3D | B45: 1793 | F45: 200
A46: Oppmåling - Ny bil | B46: 1794 | D46: 250
A47: Kryssutbedring Strandgt. og skiltplan | B47: 1700 | D47: 2000
A48: Sletteveien til Hellvik skole | B48: 1720 | C48: 2000
A49: Utskifting stor feiemaskin | B49: 1981 | F49: 1600
A50: Nyåsveien rassikring | B50: 1708 | C50: 400
A51: Utskifting biler med plan og tipp (avskiltet) | B51: 1713 | D51: 1050
A52: Utskifting kassebil caravell (avskiltet 2012) | B52: 1713 | E52: 900
A53: Slettebø Idrettsbygg | B53: 1833 | D53: 400 | G53: 1000
A54: Ny lift | B54: 1981 | D54: 500
A55: Slettebø barnehage - Ny taktekking | B55: 1224 | G55: 800
A56: Gr.Bråden barnehage - Ny taktekking | B56: 1225 | G56: 800
A57: Husabø barnehage - taktekking, kledning | B57: 1226 | G57: 400
A59: Samlet ramme avd. (ex tilbakebet) | C59: =SUM(C7:C58) -> 119700 | D59: =SUM(D7:D58) -> 23300 | E59: =SUM(E7:E58) -> 31700 | F59: =SUM(F7:F58) -> 15600 | G59: =SUM(G7:G58) -> 41300
